lending/lending_fUSD_20250408
["ID","MTS","AMOUNT","RATE_DAILY","PERIOD"]
[357557449,1744144247308,-2240.0,0.0005,120]
[357557450,1744144247318,-9898.08857519,0.0005,120]
[357557451,1744144247327,-280.7189779,0.0005,30]
[357557452,1744144247337,-25049.90736169,0.0005,3]
[357557453,1744144247346,-1420.74476757,0.0005,120]
[357557454,1744144247356,-559.0486609,0.0005,120]
[357557455,1744144247365,-1607.49677,0.0005,120]
[357557456,1744144247374,-1136.57007597,0.0005,2]
[357557457,1744144247384,-32401.88010383,0.0005,30]
[357557458,1744144247394,-3198.78293666,0.0005,120]
[357557459,1744144247403,-213.20063353,0.0005,120]
[357557460,1744144247413,-715.45814287,0.0005,120]
[357557461,1744144247423,-500.0,0.0005,30]
[357557462,1744144247432,-719.12783419,0.0005,120]
[357557463,1744144247442,-406.66632749,0.0005,120]
[357557464,1744144247451,-2658.57294533,0.0005,2]
[357557465,1744144247461,-300.0,0.0005,2]
[357557466,1744144247471,-269.297454,0.0005,120]
[357557467,1744144247480,-150.61,0.00050008,2]
[357557468,1744144247490,-250.0,0.00050008,120]
[357557469,1744144247499,-354.02,0.00050008,120]
[357557470,1744144247508,-150.0,0.00050008,2]
[357557471,1744144247518,-150.61,0.00050044,2]
[357557472,1744144247527,-171.11,0.00050063,120]
[357557473,1744144247537,-150.61,0.00050079,2]
[357557474,1744144247546,-150.61,0.00050115,2]
[357557475,1744144247556,-150.61,0.00050151,2]
[357557476,1744144247566,-150.61,0.00050187,2]
[357557477,1744144247576,-150.61,0.00050222,2]
[357557478,1744144247585,-150.61,0.00050258,2]
[357557479,1744144247594,-151.0,0.00050299,120]
[357557480,1744144247603,-1284.0,0.00050299,120]
[357557481,1744144247612,-232.37,0.000503,7]
[357557482,1744144247622,-623.233,0.000503,89]
[357557483,1744144247631,-1000.0,0.00050352,10]
[357557484,1744144247640,-2000.0,0.000504,2]
[357557485,1744144247649,-318.73,0.00050419,2]
[357557486,1744144247659,-203.38,0.000505,48]
[357557487,1744144247668,-203.38,0.000505,48]
[357557488,1744144247677,-203.38,0.000505,48]
[357557489,1744144247686,-203.38,0.000505,48]
[357557490,1744144247696,-203.38,0.000505,48]
[357557491,1744144247705,-203.38,0.000505,48]
[357557492,1744144247715,-203.38,0.000505,48]
[357557493,1744144247723,-203.38,0.000505,48]
[357557494,1744144247733,-203.38,0.000505,48]
[357557495,1744144247742,-203.38,0.000505,48]
[357557496,1744144247753,-203.38,0.000505,48]
[357557497,1744144247763,-203.38,0.000505,48]
[357557498,1744144247772,-203.38,0.000505,48]
[357557499,1744144247782,-203.38,0.000505,48]
[357557500,1744144247792,-203.38,0.000505,48]
[357557501,1744144247801,-203.38,0.000505,48]
[357557502,1744144247811,-203.38,0.000505,48]
[357557503,1744144247820,-203.38,0.000505,48]
[357557504,1744144247830,-203.38,0.000505,48]
[357557505,1744144247839,-203.38,0.000505,48]
[357557506,1744144247848,-203.38,0.000505,48]
[357557507,1744144247858,-203.38,0.000505,48]
[357557508,1744144247867,-203.38,0.000505,48]
[357557509,1744144247877,-203.38,0.000505,48]
[357557510,1744144247886,-300.0,0.000505,2]
[357557511,1744144247895,-195.02576001,0.00050547,15]
[357557512,1744144247904,-300.0,0.00051,2]
[357557513,1744144247914,-500.0,0.000513,10]
[357557514,1744144247924,-500.0,0.000513,10]
[357557515,1744144247933,-311.0,0.000515,2]
[357557516,1744144247942,-2000.0,0.00051617,8]
[357557517,1744144247951,-195.02576001,0.00051635,15]
[357557518,1744144247960,-12122.6876881,0.00051645,4]
[357557519,1744144247970,-1068.40138417,0.00051645,4]
[357557520,1744144247980,-23900.0,0.00051655,2]
[357557521,1744144247989,-5000.0,0.000519,120]
[357557522,1744144247999,-1292.64,0.00051937,2]
[357557523,1744144248010,-151.47,0.0005198,120]
[357557524,1744144248020,-72736.1261285,0.0005199,4]
[357557525,1744144248030,-5342.00692085,0.0005199,4]
[357557526,1744144248197,-3205.20415251,0.0005199,4]
[357557527,1744144248248,-150.5,0.0005199,120]
[357557528,1744144248262,-264.55531989,0.00051998,120]
[357557529,1744144248271,-431.64474112,0.00052,120]
[357557530,1744144248281,-90161.1974606,0.00052,30]
[357557531,1744144248291,-1925.87,0.00052,14]
[357557532,1744144248302,-318.73,0.00052683,2]
[357557533,1744144248312,-195.02576001,0.00052723,15]
[357557534,1744144248322,-152.0,0.00052995,3]
[357557535,1744144248332,-2000.0,0.000532,2]
[357557536,1744144248342,-150.0,0.00053217,7]
[357557537,1744144248352,-150.0,0.00053217,7]
[357557538,1744144248362,-200.0,0.00053217,7]
[357557539,1744144248372,-500.0,0.00053217,7]
[357557540,1744144248382,-847.89191888,0.00053217,7]
[357557541,1744144248391,-1169.9396023,0.00053252,4]
[357557542,1744144248404,-150.0,0.00053272,7]
[357557543,1744144248414,-151.0,0.00053299,120]
[357557544,1744144248426,-150.0,0.00053372,7]
[357557545,1744144248438,-423.0966557,0.00053431,2]
[357557546,1744144248448,-1068.40138417,0.00053575,4]
[357557547,1744144248458,-150.0,0.00053585,7]
[357557548,1744144248468,-5580.92694805,0.0005362,2]
[357557549,1744144248478,-500.0,0.000537,19]
[357557550,1744144248488,-423.0966557,0.000537,2]
[357557551,1744144248498,-2000.0,0.00053713,8]
[357557552,1744144248510,-700.0,0.000538,19]
[357557553,1744144248520,-150.0,0.00053805,7]
[357557554,1744144248530,-195.02576001,0.00053812,15]
[357557555,1744144248540,-150.0,0.00053814,7]
[357557556,1744144248550,-150.0,0.00053868,7]
[357557557,1744144248559,-150.0,0.00053899,7]
[357557558,1744144248569,-1000.0,0.000539,19]
[357557559,1744144248580,-150.0,0.0005394,7]
[357557560,1744144248590,-150.0,0.00053956,7]
[357557561,1744144248599,-6673.6439,0.00053959,2]
[357557562,1744144248610,-1580.4624,0.00053968,2]
[357557563,1744144248620,-159.9,0.00053993,120]
[357557564,1744144248630,-1068.40138417,0.00054049,4]
[357557565,1744144248640,-151.47,0.00054049,120]
[357557566,1744144248651,-1733.35984976,0.00054059,26]
[357557567,1744144248662,-1000.0,0.00054059,2]
[357557568,1744144248671,-9608.5294,0.00054059,2]
[357557569,1744144248682,-328.9258,0.00054059,2]
[357557570,1744144248692,-500.0,0.00054059,2]
[357557571,1744144248702,-223.0,0.00054069,120]
[357557572,1744144248712,-277.23473127,0.00054069,55]
[357557573,1744144248722,-188.87792375,0.00054069,31]
[357557574,1744144248732,-789.43,0.00054069,2]
[357557575,1744144248742,-1000.0,0.00054101,120]
[357557576,1744144248752,-1068.40138417,0.00054149,4]
[357557577,1744144248762,-1068.40138417,0.00054149,4]
[357557578,1744144248772,-151.0,0.00054149,30]
[357557579,1744144248781,-151.0,0.00054149,120]
[357557580,1744144248791,-151.0,0.00054149,120]
[357557581,1744144248800,-151.0,0.00054149,120]
[357557582,1744144248810,-151.0,0.00054149,120]
[357557583,1744144248819,-151.0,0.00054149,120]
[357557584,1744144248829,-151.0,0.00054149,120]
[357557585,1744144248839,-151.0,0.00054149,120]
[357557586,1744144248848,-151.0,0.00054149,120]
[357557587,1744144248858,-151.0,0.00054149,120]
[357557588,1744144248867,-151.0,0.00054149,120]
[357557589,1744144248877,-151.0,0.00054149,120]
[357557590,1744144248886,-151.0,0.00054149,120]
[357557591,1744144248896,-151.0,0.00054149,120]
[357557592,1744144248906,-151.0,0.00054149,120]
[357557593,1744144248915,-2136.80276834,0.00054149,4]
[357557594,1744144248925,-842.16033665,0.00054158,90]
[357557595,1744144248935,-500.0,0.00054158,30]
[357557596,1744144248944,-151.0,0.00054158,120]
[357557597,1744144248954,-151.0,0.00054158,120]
[357557598,1744144248964,-151.0,0.00054158,120]
[357557599,1744144248974,-151.0,0.00054158,120]
[357557600,1744144248983,-151.0,0.00054158,120]
[357557601,1744144248992,-474.439769,0.00054158,120]
[357557602,1744144249002,-474.439769,0.00054158,120]
[357557603,1744144249011,-3310.122234,0.00054158,120]
[357557604,1744144249021,-349.600232,0.00054158,120]
[357557605,1744144249030,-151.0,0.00054158,120]
[357557606,1744144249039,-349.600232,0.00054158,120]
[357557607,1744144249048,-151.0,0.00054158,120]
[357557608,1744144249059,-163.821533,0.00054159,120]
[357557609,1744144249068,-151.0,0.00054159,120]
[357557610,1744144249078,-151.0,0.00054159,120]
[357557611,1744144249087,-151.0,0.00054159,120]
[357557612,1744144249097,-151.0,0.00054159,120]
[357557613,1744144249106,-151.0,0.00054159,120]
[357557614,1744144249116,-474.439769,0.00054159,120]
[357557615,1744144249125,-474.439769,0.00054159,120]
[357557616,1744144249135,-474.439769,0.00054159,120]
[357557617,1744144249144,-474.439769,0.00054159,120]
[357557618,1744144249154,-151.0,0.00054159,30]
[357557619,1744144249163,-3310.122234,0.00054159,120]
[357557620,1744144249173,-349.600232,0.00054159,120]
[357557621,1744144249183,-151.0,0.00054159,120]
[357557622,1744144249193,-349.600232,0.00054159,120]
[357557623,1744144249202,-151.0,0.00054159,120]
[357557624,1744144249212,-3310.122234,0.00054159,120]
[357557625,1744144249224,-349.600232,0.00054159,120]
[357557626,1744144249235,-349.600232,0.00054159,120]
[357557627,1744144249245,-151.0,0.00054159,120]
[357557628,1744144249256,-151.0,0.00054159,120]
[357557629,1744144249266,-151.0,0.00054159,120]
[357557630,1744144249276,-151.0,0.00054159,120]
[357557631,1744144249287,-156.091119,0.00054159,120]
[357557632,1744144249296,-151.0,0.00054159,120]
[357557633,1744144249308,-151.0,0.00054159,120]
[357557634,1744144249318,-154.641943,0.00054159,120]
[357557635,1744144249328,-151.0,0.00054159,120]
[357557636,1744144249337,-277.193828,0.00054159,120]
[357557637,1744144249347,-151.0,0.00054159,120]
[357557638,1744144249356,-151.0,0.00054159,120]
[357557639,1744144249366,-151.0,0.00054159,120]
[357557640,1744144249376,-151.0,0.00054159,120]
[357557641,1744144249386,-700.0,0.00054159,30]
[357557642,1744144249396,-700.0,0.00054159,30]
[357557643,1744144249405,-700.0,0.00054159,30]
[357557644,1744144249415,-700.0,0.00054159,30]
[357557645,1744144249425,-700.0,0.00054159,30]
[357557646,1744144249435,-700.0,0.00054159,40]
[357557647,1744144249444,-300.0,0.00054168,30]
[357557648,1744144249454,-671.1024946,0.00054168,30]
[357557649,1744144249464,-199.684146,0.00054169,120]
[357557650,1744144249474,-151.0,0.00054169,120]
[357557651,1744144249484,-151.0,0.00054169,120]
[357557652,1744144249494,-151.0,0.00054169,120]
[357557653,1744144249503,-153.877569,0.00054169,120]
[357557654,1744144249513,-151.0,0.00054169,120]
[357557655,1744144249522,-151.0,0.00054169,120]
[357557656,1744144249532,-151.0,0.00054169,120]
[357557657,1744144249541,-151.0,0.00054169,120]
[357557658,1744144249551,-151.0,0.00054169,120]
[357557659,1744144249560,-151.0,0.00054169,120]
[357557660,1744144249570,-151.0,0.00054169,120]
[357557661,1744144249579,-281.606626,0.00054169,120]
[357557662,1744144249589,-151.0,0.00054169,120]
[357557663,1744144249598,-151.0,0.00054169,120]
[357557664,1744144249607,-151.0,0.00054169,120]
[357557665,1744144249617,-151.0,0.00054169,120]
[357557666,1744144249627,-151.518957,0.00054169,120]
[357557667,1744144249636,-151.0,0.00054169,120]
[357557668,1744144249646,-151.0,0.00054169,120]
[357557669,1744144249656,-188.491116,0.00054169,120]
[357557670,1744144249666,-160.546118,0.00054169,120]
[357557671,1744144249675,-160.546118,0.00054169,120]
[357557672,1744144249684,-160.546118,0.00054169,120]
[357557673,1744144249694,-160.546118,0.00054169,120]
[357557674,1744144249703,-151.0,0.00054169,120]
[357557675,1744144249712,-151.0,0.00054169,120]
[357557676,1744144249722,-258.155521,0.00054169,120]
[357557677,1744144249735,-474.439769,0.00054169,120]
[357557678,1744144249746,-474.439769,0.00054169,120]
[357557679,1744144249756,-474.439769,0.00054169,120]
[357557680,1744144249766,-474.439769,0.00054169,120]
[357557681,1744144249775,-156.138853,0.00054169,120]
[357557682,1744144249785,-3310.122234,0.00054169,120]
[357557683,1744144249795,-3310.122234,0.00054169,120]
[357557684,1744144249804,-151.0,0.00054169,120]
[357557685,1744144249814,-151.0,0.00054169,120]
[357557686,1744144249824,-151.0,0.00054169,120]
[357557687,1744144249834,-349.600232,0.00054169,120]
[357557688,1744144249844,-240.681549,0.00054169,120]
[357557689,1744144249854,-349.600232,0.00054169,120]
[357557690,1744144249863,-3310.122234,0.00054169,120]
[357557691,1744144249872,-3310.122234,0.00054169,120]
[357557692,1744144249882,-349.600232,0.00054169,120]
[357557693,1744144249892,-349.600232,0.00054169,120]
[357557694,1744144249902,-151.0,0.00054169,120]
[357557695,1744144249912,-151.0,0.00054169,120]
[357557696,1744144249922,-262.628052,0.00054169,120]
[357557697,1744144249932,-2000.0,0.00054169,13]
[357557698,1744144249942,-2000.0,0.00054169,13]
[357557699,1744144249952,-2000.0,0.00054169,13]
[357557700,1744144249964,-234.0,0.00054169,13]
[357557701,1744144249973,-163.72059963,0.0005422,31]
[357557702,1744144249983,-150.50209736,0.0005423,120]
[357557703,1744144249994,-150.0,0.00054267,7]
[357557704,1744144250006,-423.0966557,0.00054282,2]
[357557705,1744144250017,-150.0,0.00054319,120]
[357557706,1744144250030,-999.0,0.00054319,120]
[357557707,1744144250039,-151.0,0.0005432,120]
[357557708,1744144250049,-151.967594,0.0005432,120]
[357557709,1744144250059,-151.0,0.0005432,120]
[357557710,1744144250069,-151.0,0.0005432,120]
[357557711,1744144250078,-151.0,0.0005432,120]
[357557712,1744144250088,-151.0,0.0005432,120]
[357557713,1744144250097,-151.0,0.0005432,120]
[357557714,1744144250107,-151.0,0.0005432,120]
[357557715,1744144250116,-151.0,0.0005432,120]
[357557716,1744144250126,-151.0,0.0005432,90]
[357557717,1744144250135,-151.0,0.0005432,120]
[357557718,1744144250144,-151.0,0.0005432,120]
[357557719,1744144250154,-151.47,0.0005432,120]
[357557720,1744144250163,-151.47,0.0005432,120]
[357557721,1744144250173,-151.47,0.0005432,120]
[357557722,1744144250182,-151.0,0.00054329,120]
[357557723,1744144250192,-150.0,0.00054329,3]
[357557724,1744144250201,-96925.3679055,0.0005433,30]
[357557726,1744144687843,1000.0,7.945e-05,2]
[357557727,1744144687866,2046.85,7.945e-05,2]
[357557728,1744145234104,-157.07,0.00026849,2]
[357557729,1744145234125,-150.0,0.00034548,10]
[357557730,1744145234146,-1.84396462,0.00039843,2]
[357557731,1744145234176,-161.29603538,0.00039843,2]
[357557732,1744145234197,-280.26,0.00039843,2]
[357557733,1744145234218,-157.07,0.00040616,2]
[357557734,1744145234239,-150.0,0.000429,2]
[357557735,1744145234260,-151.0,0.00043464,14]
[357557736,1744145234284,-185.3975,0.000441,120]
[357557737,1744145234305,-735.01948623,0.00044115,30]
[357557738,1744145234335,-206.41,0.000442,36]
[357557739,1744145234361,-206.41,0.000442,36]
[357557740,1744145234388,-206.41,0.000442,36]
[357557741,1744145234414,-206.41,0.000442,36]
[357557742,1744145234440,-206.41,0.000442,36]
[357557743,1744145234465,-206.41,0.000442,36]
[357557744,1744145234490,-206.41,0.000442,36]
[357557745,1744145234520,-206.41,0.000442,36]
[357557746,1744145234545,-206.41,0.000442,36]
[357557747,1744145234574,-206.41,0.000442,36]
[357557748,1744145234605,-206.41,0.000442,36]
[357557749,1744145234632,-206.41,0.000442,36]
[357557750,1744145234654,-159.29,0.000442,2]
[357557751,1744145234676,-160.45174466,0.00044873,30]
[357557752,1744145234698,-143.75743065,0.0004489,14]
[357557753,1744145346081,-150.0,0.000429,2]
[357557754,1744145346102,-498.587,0.000449,72]
[357557755,1744145346123,-500.0,0.00046027,2]
[357557756,1744145346144,-5.70489064,0.00048033,2]
[357557757,1744145349070,-277.38510936,0.00048033,2]
[357557796,1744145440372,-175.86,0.00049622,120]
[357557797,1744145440382,-75.6951349,0.00049623,2]
[357557798,1744145440413,-609.7448651,0.00049623,2]
[357557799,1744145440422,-300.00113196,0.000497,120]
[357557800,1744145440431,-55.1989134,0.00049731,2]
[357557801,1744145440443,-238.0810866,0.00049731,2]
[357557802,1744145440452,-200.0,0.00049778,7]
[357557803,1744145440461,-1000.0,0.00049984,120]
[357557804,1744145440471,-598.72678271,0.0005,120]
[357557805,1744145440481,-283.09,0.00050297,2]
[357557806,1744145440490,-1152.51087213,0.00050297,30]
[357557836,1744145443208,-1338.26696788,0.00050297,30]
[357557843,1744145443534,-3856.55,0.00050297,30]
[357557844,1744145443545,-258.0,0.00050297,30]
[357557849,1744145445930,-2065.25171578,0.00050297,30]
[357557850,1744145445999,-82.41802497,0.00050297,30]
[357557851,1744145446196,-95443.38692637,0.00050297,30]
[357557852,1744145446206,-150.0,0.00050297,2]
[357557853,1744145446215,-191.54,0.000503,7]
[357557854,1744145446225,-206.41,0.000505,48]
[357557855,1744145446234,-206.41,0.000505,48]
[357557856,1744145446244,-206.41,0.000505,48]
[357557857,1744145446253,-206.41,0.000505,48]
[357557858,1744145446262,-206.41,0.000505,48]
[357557859,1744145446271,-206.41,0.000505,48]
[357557860,1744145446281,-206.41,0.000505,48]
[357557861,1744145446290,-206.41,0.000505,48]
[357557862,1744145446300,-206.41,0.000505,48]
[357557863,1744145446310,-206.41,0.000505,48]
[357557864,1744145446319,-206.41,0.000505,48]
[357557865,1744145446329,-206.41,0.000505,48]
[357557866,1744145446338,-206.41,0.000505,48]
[357557867,1744145446348,-206.41,0.000505,48]
[357557868,1744145446357,-206.41,0.000505,48]
[357557869,1744145446367,-206.41,0.000505,48]
[357557870,1744145446376,-206.41,0.000505,48]
[357557871,1744145446386,-206.41,0.000505,48]
[357557872,1744145446395,-206.41,0.000505,48]
[357557873,1744145446404,-206.41,0.000505,48]
[357557874,1744145446414,-206.41,0.000505,48]
[357557875,1744145446423,-206.41,0.000505,48]
[357557876,1744145446432,-206.41,0.000505,48]
[357557877,1744145446441,-206.41,0.000505,48]
[357557879,1744145446451,-500.0,0.000509,10]
[357557881,1744145446459,-280.26,0.00051076,2]
[357557882,1744145446469,-500.0,0.00051198,120]
[357557884,1744145446478,-500.0,0.00051198,120]
[357557885,1744145446487,-500.0,0.00051198,120]
[357557886,1744145446496,-500.0,0.00051198,120]
[357557887,1744145446505,-500.0,0.00051198,120]
[357557888,1744145446514,-360.9223716,0.00051198,120]
[357557889,1744145446523,-500.0,0.00051198,120]
[357557890,1744145446531,-500.0,0.00051198,120]
[357557891,1744145446540,-500.0,0.00051198,120]
[357557892,1744145446549,-500.0,0.00051198,120]
[357557893,1744145446558,-500.0,0.00051198,120]
[357557894,1744145446568,-500.0,0.00051198,120]
[357557895,1744145446578,-500.0,0.00051198,120]
[357557896,1744145446590,-500.0,0.00051198,120]
[357557897,1744145446599,-500.0,0.00051198,120]
[357557898,1744145446608,-500.0,0.00051198,120]
[357557899,1744145446619,-500.0,0.00051198,120]
[357557900,1744145446628,-500.0,0.00051198,120]
[357557901,1744145446638,-500.0,0.00051198,120]
[357557902,1744145446647,-500.0,0.00051198,120]
[357557903,1744145446656,-500.0,0.00051198,120]
[357557904,1744145446667,-500.0,0.00051198,120]
[357557905,1744145446677,-500.0,0.00051198,120]
[357557906,1744145446686,-500.0,0.00051198,120]
[357557907,1744145446695,-500.0,0.00051198,120]
[357557908,1744145446704,-500.0,0.00051198,120]
[357557909,1744145446713,-500.0,0.00051198,120]
[357557910,1744145446722,-500.0,0.00051198,120]
[357557911,1744145446731,-500.0,0.00051198,120]
[357557912,1744145446741,-500.0,0.00051198,120]
[357557913,1744145446750,-500.0,0.00051198,120]
[357557914,1744145446759,-500.0,0.00051198,120]
[357557915,1744145446769,-500.0,0.00051198,120]
[357557916,1744145446779,-500.0,0.00051198,120]
[357557917,1744145446788,-500.0,0.00051198,120]
[357557918,1744145446798,-500.0,0.00051198,120]
[357557919,1744145446807,-500.0,0.00051198,120]
[357557920,1744145446816,-500.0,0.00051198,120]
[357557921,1744145446961,-500.0,0.00051198,120]
[357557922,1744145446974,-500.0,0.00051198,120]
[357557923,1744145446984,-500.0,0.00051198,120]
[357557924,1744145446993,-500.0,0.00051198,120]
[357557925,1744145447002,-500.0,0.00051198,120]
[357557926,1744145447012,-500.0,0.00051198,120]
[357557927,1744145447021,-500.0,0.00051198,120]
[357557928,1744145447031,-500.0,0.00051198,120]
[357557929,1744145447040,-500.0,0.00051198,120]
[357557930,1744145447049,-500.0,0.00051198,120]
[357557931,1744145447059,-500.0,0.00051198,120]
[357557932,1744145447068,-500.0,0.00051198,120]
[357557933,1744145447077,-500.0,0.00051198,120]
[357557934,1744145447087,-500.0,0.00051198,120]
[357557935,1744145447096,-500.0,0.00051198,120]
[357557936,1744145447106,-500.0,0.00051198,120]
[357557937,1744145447115,-500.0,0.00051198,120]
[357557938,1744145447126,-2000.0,0.000512,2]
[357557939,1744145447135,-23900.0,0.00051806,2]
[357557940,1744145447144,-384.07,0.00051887,2]
[357557941,1744145447154,-162.89,0.00051928,120]
[357557942,1744145447163,-174.0,0.00051937,2]
[357557943,1744145447172,-150.0,0.00051989,120]
[357557944,1744145447182,-574.0,0.00052127,120]
[357557945,1744145447191,-2042.0,0.00052127,120]
[357557946,1744145447201,-1324.0,0.00052127,120]
[357557947,1744145447210,-907.0,0.00052127,120]
[357557948,1744145447220,-1277.0,0.00052127,120]
[357557949,1744145447229,-790.0,0.00052127,2]
[357557950,1744145447239,-1436.0,0.00052127,120]
[357557951,1744145447249,-4141.0,0.00052127,120]
[357557952,1744145447258,-544.0,0.00052127,120]
[357557953,1744145447267,-3957.0,0.00052127,120]
[357557954,1744145447277,-852.0,0.00052127,120]
[357557955,1744145447287,-268.828,0.00052127,120]
[357557956,1744145447296,-150.0,0.00052127,2]
[357557957,1744145447305,-283.09,0.0005256,2]
[357557958,1744145447314,-877.4547017,0.00053252,4]
[357557959,1744145447324,-192.2,0.00053349,30]
[357557960,1744145447333,-150.0,0.00053359,120]
[357557961,1744145447343,-500.0,0.00053424,30]
[357557962,1744145447352,-8003.18,0.000538,2]
[357557963,1744145447362,-1255.6679,0.0005389,2]
[357557964,1744145447372,-164.15243552,0.00053899,28]
[357557965,1744145447381,-342.2159,0.000539,2]
[357557966,1744145447391,-195.02576001,0.000539,15]
[357557967,1744145447400,-1617.80252648,0.000539,26]
[357557968,1744145447409,-500.0,0.00053972,32]
[357557969,1744145447418,-500.0,0.00053973,10]
[357557970,1744145447427,-500.0,0.00053973,10]
[357557971,1744145447452,-192.2,0.0005398,30]
[357557972,1744145447461,-192.2,0.0005398,30]
[357557973,1744145447470,-192.2,0.0005398,30]
[357557974,1744145447479,-192.2,0.0005398,30]
[357557975,1744145447488,-192.2,0.0005398,30]
[357557976,1744145447498,-192.2,0.0005398,30]
[357557977,1744145447507,-192.2,0.00053989,30]
[357557978,1744145447517,-140053.659709,0.0005399,4]
[357557979,1744145447526,-151.47,0.0005399,120]
[357557980,1744145447535,-192.2,0.0005399,30]
[357557981,1744145447545,-192.2,0.0005399,30]
[357557982,1744145447554,-500.0,0.00053999,120]
[357557983,1744145447563,-198.87121085,0.00053999,120]
[357557984,1744145447574,-242.71002648,0.00053999,120]
[357557985,1744145447585,-906.72121358,0.00053999,120]
[357557986,1744145447594,-906.72121358,0.00053999,120]
[357557987,1744145447603,-906.72121358,0.00053999,120]
[357557988,1744145447612,-906.72121358,0.00053999,120]
[357557989,1744145447623,-906.72121358,0.00053999,120]
[357557990,1744145447632,-906.72121358,0.00053999,120]
[357557991,1744145447641,-906.72121358,0.00053999,120]
[357557992,1744145447653,-906.72121358,0.00053999,120]
[357557993,1744145447662,-906.72121358,0.00053999,120]
[357557994,1744145447671,-906.72121358,0.00053999,120]
[357557995,1744145447680,-906.72121358,0.00053999,120]
[357557996,1744145447690,-906.72121358,0.00053999,120]
[357557997,1744145447700,-906.72121358,0.00053999,120]
[357557998,1744145447709,-906.72121358,0.00053999,120]
[357557999,1744145447719,-906.72121358,0.00053999,120]
[357558000,1744145447729,-906.72121358,0.00053999,120]
[357558001,1744145447738,-906.72121358,0.00053999,120]
[357558002,1744145447748,-924.85563786,0.00053999,120]
[357558003,1744145447757,-924.85563786,0.00053999,120]
[357558004,1744145447767,-924.85563786,0.00053999,120]
[357558005,1744145447776,-924.85563786,0.00053999,120]
[357558006,1744145447786,-924.85563786,0.00053999,120]
[357558007,1744145447796,-924.85563786,0.00053999,120]
[357558008,1744145447805,-924.85563786,0.00053999,120]
[357558009,1744145447815,-924.85563786,0.00053999,120]
[357558010,1744145447825,-2000.0,0.00054,120]
[357558011,1744145447834,-2000.0,0.00054,2]
[357558012,1744145447845,-32574.58703758,0.00054,2]
[357558013,1744145448358,419.98966909,0.000479,2]
[357558014,1744145464765,296.93,0.000429,2]
[357558015,1744145656576,250.0,0.00019,2]
[357558017,1744146352138,-171.17,0.00026849,2]
[357558018,1744146352159,-250.0,0.00029534,2]
[357558019,1744146352181,-250.0,0.00029748,2]
[357558020,1744146352203,-171.17,0.00032646,2]
[357558021,1744146352224,-250.0,0.00036619,2]
[357558022,1744146352246,-137.97945399,0.00038443,2]
[357558023,1744146395085,-33.19054601,0.00038443,2]
[357558024,1744146395106,-250.0,0.00040141,2]
[357558025,1744146395126,-155.91,0.00041839,2]
[357558026,1744146395146,-250.0,0.00042224,2]
[357558027,1744146395167,-250.0,0.00042287,2]
[357558028,1744146395186,-232.26326,0.00043268,2]
[357558029,1744146395206,-500.0,0.00043368,2]
[357558030,1744146395227,-500.0,0.00043368,2]